bitfinex-derivatives/quotes_BNBF0:USTF0_20250305
["timestamp","ask_amount","ask_price","bid_price","bid_amount"]
[1741141275161,0.3108514,592.37,590.08,0.33893709]
[1741141275365,0.33761542,592.39,590.08,0.33893709]
[1741141275366,0.3108514,592.36,590.08,0.33893709]
[1741141275665,0.3108514,592.35,590.08,0.33893709]
[1741141275964,0.3108514,592.34,590.08,0.33893709]
[1741141276267,0.31077783,592.33,590.31,1.25490875]
[1741141276468,0.31077783,592.38,590.31,1.25490875]
[1741141277662,0.31077783,592.38,590.4,1.25490875]
[1741141278065,0.33761542,592.39,590.4,1.25490875]
[1741141278370,0.31078248,592.38,590.4,1.25490875]
[1741141278570,0.31078248,592.37,590.4,1.25490875]
[1741141278770,0.31078248,592.38,590.4,1.25490875]
[1741141279065,0.31078248,592.37,590.4,1.25490875]
[1741141279269,0.31078248,592.38,590.4,1.25490875]
[1741141279866,0.31078248,592.37,590.4,1.25490875]
[1741141280067,0.31078248,592.36,590.4,1.25490875]
[1741141280267,0.31078248,592.35,590.4,1.25490875]
[1741141280469,0.31078248,592.34,590.4,1.25490875]
[1741141280669,0.31078248,592.33,590.4,1.25490875]
[1741141280865,0.33766102,592.31,590.4,1.25490875]
[1741141281065,0.31078248,592.3,590.4,1.25490875]
[1741141281266,0.33767812,592.28,590.4,1.25490875]
[1741141281470,0.31086767,592.27,590.4,1.25490875]
[1741141281770,0.33769523,592.25,590.4,1.25490875]
[1741141282166,0.31086767,592.24,590.4,1.25490875]
[1741141282370,0.33771233,592.22,590.4,1.25490875]
[1741141282571,0.31086767,592.21,590.4,1.25490875]
[1741141282768,0.98556058,592.36,590.4,1.25490875]
[1741141282769,0.33772944,592.19,590.4,1.25490875]
[1741141282971,0.31086767,592.18,590.4,1.25490875]
[1741141283171,0.33774655,592.16,590.4,1.25490875]
[1741141283371,0.31086767,592.15,590.4,1.25490875]
[1741141283568,0.33776366,592.13,590.4,1.25490875]
[1741141283872,0.31086767,592.12,590.4,1.25490875]
[1741141284068,0.33776366,592.13,590.4,1.25490875]
[1741141284069,0.33778078,592.1,590.4,1.25490875]
[1741141284265,0.31086767,592.09,590.4,1.25490875]
[1741141284469,0.31086767,592.08,590.4,1.25490875]
[1741141284673,0.3378036,592.06,590.4,1.25490875]
[1741141285174,0.31088814,592.05,590.4,1.25490875]
[1741141285371,0.31088814,592.04,590.4,1.25490875]
[1741141285571,0.31088814,592.03,590.4,1.25490875]
[1741141285773,0.31088814,592.05,590.4,1.25490875]
[1741141286674,0.31088814,592.05,590.15,1.25490875]
[1741141286873,0.31088814,592.04,590.15,1.25490875]
[1741141287276,0.31088814,592.05,590.15,1.25490875]
[1741141287481,0.31088814,592.03,590.15,1.25490875]
[1741141287677,0.31088814,592.05,590.15,1.25490875]
[1741141287875,0.31088814,592.02,590.15,1.25490875]
[1741141288077,0.31088814,592.04,590.15,1.25490875]
[1741141288274,0.31088814,592.03,590.15,1.25490875]
[1741141288477,0.3378036,592.06,590.15,1.25490875]
[1741141288679,0.31079555,592.05,590.15,1.25490875]
[1741141288870,0.31079555,592.04,590.15,1.25490875]
[1741141289072,0.31079555,592.03,590.15,1.25490875]
[1741141289278,0.31079555,592.02,590.15,1.25490875]
[1741141289478,0.31079555,592.01,590.15,1.25490875]
[1741141289673,0.31079555,592.0,590.15,1.25490875]
[1741141289873,0.31079555,591.99,590.53,1.25490875]
[1741141290075,0.31079555,591.98,590.53,1.25490875]
[1741141290278,0.31079555,591.97,590.53,1.25490875]
[1741141290573,0.31079555,591.96,590.53,1.25490875]
[1741141290774,0.31079555,592.05,590.53,1.25490875]
[1741141290974,0.31079555,592.04,590.53,1.25490875]
[1741141291178,0.31079555,592.03,590.53,1.25490875]
[1741141291378,0.31079555,592.05,590.53,1.25490875]
[1741141291579,0.31079555,592.04,590.53,1.25490875]
[1741141291774,0.31079555,592.03,590.53,1.25490875]
[1741141291974,0.31079555,592.02,590.53,1.25490875]
[1741141292179,0.31079555,592.01,590.53,1.25490875]
[1741141292479,0.31079555,592.05,590.62,1.25490875]
[1741141296876,0.3378036,592.06,590.62,1.25490875]
[1741141297184,0.31077718,592.05,590.65,1.25490875]
[1741141297978,0.31077718,592.04,590.65,1.25490875]
[1741141298183,0.3378036,592.06,590.65,1.25490875]
[1741141298184,0.31077718,592.03,590.65,1.25490875]
[1741141298486,0.31077718,592.02,590.65,1.25490875]
[1741141298677,0.31077718,592.01,590.65,1.25490875]
[1741141298883,0.31077718,592.0,590.65,1.25490875]
[1741141299082,0.31077718,591.99,590.65,1.25490875]
[1741141299282,0.31077718,591.98,590.65,1.25490875]
[1741141299483,0.31077718,591.97,590.65,1.25490875]
[1741141299783,0.31077718,591.96,590.74,1.25490875]
[1741141299983,1.65615515,592.05,590.74,1.25490875]
[1741141300285,0.31080795,592.04,590.74,1.25490875]
[1741141300486,0.31080752,592.03,590.74,1.25490875]
[1741141300680,0.3378036,592.06,590.74,1.25490875]
[1741141301187,0.31079716,592.05,590.74,1.25490875]
[1741141301388,0.33782071,592.03,590.74,1.25490875]
[1741141301588,0.31079716,592.02,590.74,1.25490875]
[1741141302185,0.31079716,592.02,590.28,1.25490875]
[1741141302592,0.31079716,592.02,590.29,0.33881651]
[1741141302796,0.33783783,592.0,590.29,0.33881651]
[1741141302990,0.31079716,591.99,590.29,0.33881651]
[1741141303296,0.33783783,592.0,590.29,0.33881651]
[1741141304386,0.31084585,591.99,590.29,0.33881651]
[1741141304590,0.33783783,592.0,590.29,0.33881651]
[1741141304591,0.31084585,591.98,590.29,0.33881651]
[1741141304790,0.31084585,591.97,590.35,1.25490875]
[1741141305087,0.31084585,591.96,590.35,1.25490875]
[1741141305296,0.31084585,591.95,590.35,1.25490875]
[1741141305590,0.31084585,591.94,590.35,1.25490875]
[1741141305784,0.31084585,591.99,590.35,1.25490875]
[1741141306894,0.31084585,591.99,590.29,0.33881651]
[1741141306895,0.31084585,591.99,590.52,1.25490875]
[1741141308795,0.31084585,591.99,590.84,1.25490875]
[1741141309689,0.33785495,591.97,590.84,1.25490875]
[1741141309889,0.31084585,591.96,590.84,1.25490875]
[1741141310093,0.33787208,591.94,590.84,1.25490875]
[1741141310299,0.31084585,591.93,590.84,1.25490875]
[1741141310798,0.31084585,591.93,590.82,1.25490875]
[1741141311189,0.33787208,591.94,590.82,1.25490875]
[1741141312595,0.33787208,591.94,590.57,1.5058905]
[1741141312596,0.33787208,591.94,590.57,1.25490875]
[1741141315696,0.33787208,591.94,590.69,1.25490875]
[1741141318900,0.33787208,591.94,590.8,1.25490875]
[1741141320394,0.31075134,591.93,590.8,1.25490875]
[1741141320599,0.33788349,591.92,590.8,1.25490875]
[1741141320799,0.33788349,591.92,590.75,1.25490875]
[1741141320800,0.31075134,591.91,590.75,1.25490875]
[1741141323603,0.31075134,591.91,590.74,1.25490875]
[1741141323803,0.33788349,591.92,590.74,1.25490875]
[1741141325200,0.33788349,591.92,590.14,1.25490875]
[1741141326100,0.31082761,591.91,590.14,1.25490875]
[1741141326899,0.33788349,591.92,590.14,1.25490875]
[1741141327698,0.33788349,591.92,590.4,1.25490875]
[1741141329909,0.33788349,591.92,590.87,1.25490875]
[1741141330313,0.3107449,591.91,590.87,1.25490875]
[1741141330512,0.33789491,591.9,590.87,1.25490875]
[1741141330713,0.3107449,591.89,590.87,1.25490875]
[1741141330915,0.33790633,591.88,590.87,1.25490875]
[1741141331112,0.3107449,591.87,590.87,1.25490875]
[1741141331313,0.33791775,591.86,590.87,1.25490875]
[1741141331513,0.3107449,591.85,590.87,1.25490875]
[1741141331822,0.33792917,591.84,590.87,1.25490875]
[1741141332024,0.3107449,591.83,590.87,1.25490875]
[1741141332418,0.33794059,591.82,590.87,1.25490875]
[1741141332919,0.33794059,591.82,590.82,1.25490875]
[1741141333512,0.3107942,591.81,590.82,1.25490875]
[1741141333712,0.33795772,591.79,590.82,1.25490875]
[1741141333913,0.3107942,591.78,590.82,1.25490875]
[1741141334311,0.64877631,591.77,590.72,1.25490875]
[1741141334515,0.64878202,591.76,590.72,1.25490875]
[1741141334818,0.31080717,591.75,590.72,1.25490875]
[1741141335519,0.33797485,591.76,590.72,1.25490875]
[1741141337122,0.31093326,591.75,590.72,1.25490875]
[1741141337421,0.31093326,591.75,590.55,1.25490875]
[1741141338024,0.31093326,591.74,590.55,1.25490875]
[1741141338225,0.31093326,591.73,590.55,1.25490875]
[1741141338431,0.31093326,591.72,590.55,1.25490875]
[1741141338720,0.31093326,591.71,590.55,1.25490875]
[1741141338930,0.31093326,591.7,590.55,1.25490875]
[1741141339229,0.31093326,591.69,590.55,1.25490875]
[1741141339431,0.31093326,591.75,590.55,1.25490875]
[1741141339629,0.33799198,591.73,590.55,1.25490875]
[1741141339826,0.31094999,591.72,590.47,1.25490875]
[1741141341922,0.31094999,591.72,590.48,1.25490875]
[1741141344429,0.33799198,591.73,590.48,1.25490875]
[1741141344931,0.33799198,591.73,590.44,1.25490875]
[1741141346935,0.33799198,591.73,590.47,1.25490875]
[1741141350931,0.33799198,591.73,590.66,1.25490875]
[1741141353033,0.33799198,591.73,590.7,1.25490875]
[1741141354945,0.33799198,591.73,590.48,1.25490875]
[1741141356237,0.31080173,591.72,590.48,1.25490875]
[1741141357035,0.31080173,591.72,590.46,1.25490875]
[1741141357645,0.33799198,591.73,590.46,1.25490875]
[1741141359033,0.33799198,591.73,590.72,1.25490875]
[1741141362140,0.33799198,591.73,590.63,1.25490875]
[1741141364241,0.33799198,591.73,590.29,0.33881651]
[1741141364242,0.33799198,591.73,590.62,1.25490875]
[1741141366543,0.33799198,591.73,590.69,1.25490875]
[1741141368852,0.33799198,591.73,590.68,1.25490875]
[1741141370743,0.33799198,591.73,590.55,1.25490875]
[1741141372740,0.33799198,591.73,590.56,0.3386616]
[1741141373352,0.33799198,591.73,590.83,1.25490875]
[1741141375045,0.33799198,591.73,590.89,1.25490875]
[1741141377745,0.33799198,591.73,590.56,0.3386616]
[1741141379753,0.33799198,591.73,590.58,1.25490875]
[1741141382050,0.33799198,591.73,590.59,0.3386444]
[1741141382249,0.33799198,591.73,590.87,1.25490875]
[1741141384953,0.33799198,591.73,590.96,1.25490875]
[1741141386956,0.33799198,591.73,591.24,1.25490875]
[1741141388149,1.20296704,592.69,591.24,1.25490875]
[1741141388355,0.33745591,592.67,591.24,1.25490875]
[1741141388555,0.31057972,592.66,591.24,1.25490875]
[1741141389058,0.337473,592.64,591.24,1.25490875]
[1741141389258,0.31057972,592.63,591.24,1.25490875]
[1741141389456,0.33749008,592.61,591.24,1.25490875]
[1741141389758,0.31057972,592.6,591.24,1.25490875]
[1741141390453,0.31057972,592.6,591.02,1.5058905]
[1741141390658,0.31057972,592.6,591.0,1.25490875]
[1741141391653,0.33750717,592.58,591.0,1.25490875]
[1741141391856,0.3105775,592.57,591.0,1.25490875]
[1741141392255,0.33752425,592.55,591.0,1.25490875]
[1741141392451,0.3105775,592.54,591.0,1.25490875]
[1741141392656,0.33754134,592.52,591.0,1.25490875]
[1741141392853,0.3105775,592.51,591.0,1.25490875]
[1741141393057,0.33755843,592.49,591.0,1.25490875]
[1741141393454,0.31061782,592.48,591.0,1.25490875]
[1741141393661,0.33757553,592.46,591.0,1.25490875]
[1741141393960,0.31061782,592.45,591.0,1.25490875]
[1741141394155,0.33759262,592.43,591.0,1.25490875]
[1741141394354,0.31061782,592.42,591.0,1.25490875]
[1741141394564,0.31061782,592.42,590.89,1.25490875]
[1741141394755,0.33760972,592.4,590.89,1.25490875]
[1741141394958,0.31061782,592.39,590.89,1.25490875]
[1741141395154,0.33762682,592.37,590.89,1.25490875]
[1741141395355,0.31061782,592.36,590.89,1.25490875]
[1741141395658,0.33764392,592.34,590.89,1.25490875]
[1741141395859,0.31061782,592.33,590.89,1.25490875]
[1741141397358,0.31061782,592.33,590.86,1.25490875]
[1741141398458,0.33766102,592.31,590.86,1.25490875]
[1741141398660,0.31065567,592.3,590.86,1.25490875]
[1741141398860,0.31065567,592.29,590.86,1.25490875]
[1741141399065,0.31067178,592.28,590.86,1.25490875]
[1741141399257,0.31067178,592.27,590.86,1.25490875]
[1741141399462,0.33769523,592.25,590.86,1.25490875]
[1741141399861,0.31067178,592.24,590.86,1.25490875]
[1741141400058,0.33771233,592.22,590.86,1.25490875]
[1741141401059,0.33771233,592.22,591.0,1.25490875]
[1741141403058,0.33771233,592.22,590.62,1.25490875]
[1741141403358,0.33771233,592.22,590.63,0.33862147]
[1741141404959,0.31064465,592.21,590.63,0.33862147]
[1741141405161,0.33772944,592.19,590.63,0.33862147]
[1741141405561,0.3106656,592.18,590.63,0.33862147]
[1741141405861,0.33774655,592.16,590.92,1.25490875]
[1741141406060,0.3106656,592.15,590.92,1.25490875]
[1741141406259,0.33776366,592.13,590.92,1.25490875]
[1741141406561,0.3106656,592.12,590.92,1.25490875]
[1741141407763,0.33776366,592.13,590.92,1.25490875]
[1741141407965,0.33776366,592.13,590.91,1.25490875]
[1741141410166,0.33776366,592.13,590.63,0.33862147]
[1741141410167,0.33776366,592.13,590.94,1.25490875]
[1741141412172,0.31060578,592.12,590.94,1.25490875]
[1741141413173,0.31060578,592.12,590.83,1.25490875]
[1741141413174,0.33777507,592.11,590.99,1.25490875]
[1741141413371,0.31060578,592.1,590.99,1.25490875]
[1741141413672,0.33778648,592.09,590.99,1.25490875]
[1741141413872,0.31060578,592.08,590.99,1.25490875]
[1741141414476,0.33778648,592.09,590.99,1.25490875]
[1741141415374,0.33778648,592.09,591.13,1.25490875]
[1741141416979,0.33778648,592.09,591.12,1.25490875]
[1741141420176,0.33778648,592.09,591.15,1.25490875]
[1741141422377,0.33778648,592.09,590.63,0.33862147]
[1741141422378,0.33778648,592.09,591.1,1.25490875]
[1741141424790,0.33778648,592.09,591.27,1.25490875]
[1741141427478,0.33778648,592.09,591.25,1.25490875]
[1741141429481,0.33778648,592.09,591.15,1.25490875]
[1741141432185,0.33778648,592.09,591.19,1.25490875]
[1741141434285,0.33778648,592.09,591.01,1.25490875]
[1741141436686,0.33778648,592.09,591.0,1.25490875]
[1741141438888,0.33778648,592.09,591.15,1.25490875]
[1741141441688,0.33778648,592.09,591.05,1.25490875]
[1741141444491,0.33778648,592.09,591.08,1.25490875]
[1741141447095,0.33778648,592.09,591.19,1.25490875]
[1741141449699,0.33778648,592.09,590.89,0.33847247]
[1741141451798,0.31060762,592.08,591.16,1.25490875]
[1741141452613,0.31062197,592.07,591.16,1.25490875]
[1741141452796,0.31062197,592.08,591.16,1.25490875]
[1741141453101,0.31062197,592.07,591.16,1.25490875]
[1741141453400,0.31062197,592.06,591.16,1.25490875]
[1741141453601,0.33778648,592.09,591.16,1.25490875]
[1741141453800,0.31070713,592.08,591.16,1.25490875]
[1741141453999,0.31070713,592.08,591.21,1.25490875]
[1741141455998,0.31070713,592.08,591.04,1.25490875]
[1741141456997,0.33778648,592.09,591.04,1.25490875]
[1741141457604,0.31063496,592.08,591.01,1.25490875]
[1741141457797,0.33778648,592.09,591.01,1.25490875]
[1741141460104,0.33778648,592.09,590.91,1.25490875]
[1741141462810,0.33778648,592.09,590.89,0.33847247]
[1741141468312,0.33778648,592.09,591.02,1.25490875]
[1741141470510,0.33778648,592.09,591.16,1.25490875]
[1741141473316,0.33778648,592.09,591.25,1.25490875]
[1741141475408,0.33778648,592.09,591.26,1.25490875]
[1741141478714,0.33778648,592.09,591.18,1.25490875]
[1741141481919,0.33778648,592.09,591.21,1.25490875]
[1741141484114,0.32197172,592.09,591.21,1.25490875]
[1741141484315,0.32197172,592.09,591.23,1.25490875]
[1741141486919,0.32197172,592.09,591.31,1.25490875]
[1741141488929,0.32197172,592.09,591.28,1.25490875]
[1741141491135,0.32197172,592.09,591.11,1.25490875]
[1741141494233,0.32197172,592.09,590.89,0.33847247]
[1741141495434,0.31061846,592.08,590.89,0.33847247]
[1741141497434,0.31061846,592.08,591.28,1.25490875]
[1741141499531,0.33779789,592.07,591.28,1.25490875]
[1741141499738,0.31061846,592.06,591.28,1.25490875]
[1741141499937,0.64854669,592.05,590.72,1.25490875]
[1741141500137,0.33782071,592.03,590.72,1.25490875]
[1741141500333,0.31073739,592.02,590.72,1.25490875]
[1741141500634,0.33783783,592.0,590.72,1.25490875]
[1741141500834,0.31073739,591.99,590.72,1.25490875]
[1741141501835,0.33783783,592.0,590.72,1.25490875]
[1741141502233,0.33783783,592.0,590.59,1.25490875]
[1741141502835,0.31075545,591.99,590.59,1.25490875]
[1741141503041,1.00906688,592.41,590.59,1.25490875]
[1741141503238,0.31074839,592.4,590.59,1.25490875]
[1741141503438,0.31074839,592.39,590.59,1.25490875]
[1741141503640,0.31074839,592.38,590.59,1.25490875]
[1741141503841,0.31074839,592.37,590.59,1.25490875]
[1741141504340,3.70720305,592.38,590.59,1.25490875]
[1741141504542,1.97161679,592.37,590.59,1.25490875]
[1741141504739,0.31067775,592.36,590.59,1.25490875]
[1741141504939,3.05151873,592.36,590.56,1.25490875]
[1741141505138,1.97161679,592.35,590.56,1.25490875]
[1741141505338,0.31067775,592.34,590.56,1.25490875]
[1741141505537,2.81289498,592.34,590.56,1.25490875]
[1741141505738,0.31067775,592.33,590.56,1.25490875]
[1741141505944,1.97161679,592.33,590.56,1.25490875]
[1741141506140,0.31067775,592.32,590.56,1.25490875]
[1741141506344,1.97161679,592.32,590.56,1.25490875]
[1741141506643,0.31067775,592.31,590.56,1.25490875]
[1741141506845,0.31067775,592.3,590.56,1.25490875]
[1741141507046,0.31067775,592.29,590.8,1.25490875]
[1741141507348,0.31067775,592.28,590.8,1.25490875]
[1741141507544,0.31067775,592.27,590.8,1.25490875]
[1741141507747,0.31073367,592.26,590.8,1.25490875]
[1741141507942,0.31073367,592.25,590.8,1.25490875]
[1741141508250,0.31073367,592.24,590.8,1.25490875]
[1741141508448,0.31073367,592.23,590.8,1.25490875]
[1741141508748,0.31073367,592.22,590.8,1.25490875]
[1741141508948,0.31073367,592.21,590.82,1.25490875]
[1741141509344,0.31073367,592.2,590.82,1.25490875]
[1741141509549,0.31073367,592.19,590.82,1.25490875]
[1741141509749,4.01388288,592.32,590.82,1.25490875]
[1741141509951,2.93405101,592.31,590.82,1.25490875]
[1741141510150,0.31073367,592.3,590.82,1.25490875]
[1741141510347,0.31073367,592.29,590.82,1.25490875]
[1741141510550,1.27311197,592.29,590.82,1.25490875]
[1741141510743,0.31073367,592.28,590.82,1.25490875]
[1741141510945,1.51173572,592.28,590.82,1.25490875]
[1741141511249,0.31076392,592.27,590.82,1.25490875]
[1741141511446,1.0076443,592.26,590.82,1.25490875]
[1741141511645,1.0076443,592.19,590.82,1.25490875]
[1741141511850,1.0076443,592.16,590.75,1.25490875]
[1741141512051,0.31076392,592.15,590.75,1.25490875]
[1741141512352,0.31076392,592.14,590.75,1.25490875]
[1741141512552,0.31076392,592.2,590.75,1.25490875]
[1741141512747,0.31086483,592.19,590.75,1.25490875]
[1741141512952,0.31086483,592.18,590.75,1.25490875]
[1741141513152,0.31086483,592.17,590.75,1.25490875]
[1741141513452,0.31086483,592.16,590.75,1.25490875]
[1741141513652,0.31086483,592.15,590.75,1.25490875]
[1741141513946,4.15841945,592.24,590.75,1.25490875]
[1741141513947,0.31086483,592.14,590.75,1.25490875]
[1741141514147,4.46928428,592.22,590.75,1.25490875]
[1741141514353,4.46928428,592.21,590.75,1.25490875]
[1741141514653,4.46928428,592.2,590.21,1.25490875]
[1741141514846,2.8106827,592.19,590.21,1.25490875]
[1741141515047,0.31086483,592.18,590.21,1.25490875]
[1741141515249,0.31086483,592.17,590.21,1.25490875]
[1741141515452,0.31086483,592.16,590.21,1.25490875]
[1741141515651,0.31086483,592.15,590.21,1.25490875]
[1741141515852,0.31086483,592.14,590.21,1.25490875]
[1741141516052,3.69972873,592.17,590.21,1.25490875]
[1741141516254,0.3108562,592.13,590.21,1.25490875]
[1741141516446,0.3108562,592.12,590.21,1.25490875]
[1741141516753,0.3108562,592.11,590.21,1.25490875]
[1741141516953,0.3108562,592.1,590.21,1.25490875]
[1741141517154,2.81067407,592.14,590.31,1.25490875]
[1741141517347,0.3108562,592.13,590.31,1.25490875]
[1741141517546,2.93092619,592.13,590.31,1.25490875]
[1741141517749,1.96939046,592.12,590.31,1.25490875]
[1741141517948,0.31078888,592.11,590.31,1.25490875]
[1741141518250,0.31078888,592.1,590.31,1.25490875]
[1741141518454,1.96939046,592.12,590.31,1.25490875]
[1741141518657,0.31078888,592.11,590.31,1.25490875]
[1741141518857,2.92464136,592.11,590.31,1.25490875]
[1741141519052,1.96546024,592.1,590.15,1.25490875]
[1741141519259,0.31078888,592.09,590.15,1.25490875]
[1741141519555,0.31078888,592.08,590.15,1.25490875]
[1741141519752,0.31078888,592.07,590.15,1.25490875]
[1741141519956,0.31078888,592.06,590.15,1.25490875]
[1741141520158,0.31078888,592.05,590.15,1.25490875]
[1741141520452,0.31078888,592.04,590.15,1.25490875]
[1741141520652,0.31078888,592.03,590.15,1.25490875]
[1741141520854,0.31078888,592.02,590.15,1.25490875]
[1741141521051,2.20363599,592.19,590.15,1.25490875]
[1741141521354,0.31086927,592.18,590.33,1.24116989]
[1741141521652,0.31086927,592.17,590.33,1.24116989]
[1741141521858,0.31086927,592.16,590.33,1.24116989]
[1741141522152,0.31086927,592.15,590.33,1.24116989]
[1741141522358,0.31086927,592.14,590.33,1.24116989]
[1741141522660,1.00372513,592.26,590.33,1.24116989]
[1741141522854,0.31083897,592.25,590.06,1.25490875]
[1741141523160,0.31083897,592.24,590.06,1.25490875]
[1741141523357,0.31083897,592.23,590.06,1.25490875]
[1741141523859,0.31083897,592.22,590.06,1.25490875]
[1741141524159,0.31083897,592.21,590.06,1.25490875]
[1741141524354,0.31083897,592.2,590.06,1.25490875]
[1741141524556,0.3108449,592.19,590.06,1.25490875]
[1741141524759,0.3108449,592.18,590.06,1.25490875]
[1741141525055,0.3108449,592.17,590.14,1.25490875]
[1741141525255,0.3108449,592.16,590.14,1.25490875]
[1741141525457,0.3108449,592.15,590.14,1.25490875]
[1741141525657,0.3108449,592.14,590.14,1.25490875]
[1741141525857,0.3108449,592.13,590.14,1.25490875]
[1741141526059,1.00254712,592.25,590.14,1.25490875]
[1741141526259,0.31084325,592.24,590.14,1.25490875]
[1741141526559,0.31084325,592.23,590.14,1.25490875]
[1741141526759,0.31084325,592.22,590.14,1.25490875]
[1741141526960,0.31084325,592.29,590.2,1.25490875]
[1741141527158,0.31084325,592.28,590.2,1.25490875]
[1741141527358,0.31084325,592.27,590.2,1.25490875]
[1741141527558,0.31084325,592.26,590.2,1.25490875]
[1741141527759,3.99949681,592.36,590.2,1.25490875]
[1741141528058,1.96216003,592.35,590.2,1.25490875]
[1741141528254,0.31084325,592.34,590.2,1.25490875]
[1741141528453,2.79958595,592.34,590.22,0.33885669]
[1741141528657,0.33770093,592.24,590.22,0.33885669]
[1741141528857,0.31084325,592.23,590.22,0.33885669]
[1741141529158,0.33776366,592.13,590.22,0.33885669]
[1741141529353,0.31084325,592.12,590.22,0.33885669]
[1741141529558,0.33778078,592.1,590.22,0.33885669]
[1741141529754,0.31074577,592.09,590.22,0.33885669]
[1741141530258,0.33779789,592.07,590.22,0.33885669]
[1741141530558,0.31074577,592.06,590.22,0.33885669]
[1741141530858,0.33781501,592.04,590.22,0.33885669]
[1741141531161,0.31074577,592.03,590.22,0.33885669]
[1741141531359,0.33783213,592.01,590.22,0.33885669]
[1741141531560,0.31074577,592.0,590.22,0.33885669]
[1741141531754,0.33784354,591.99,590.22,0.33885669]
[1741141532158,0.33784354,591.99,590.54,1.25490875]
[1741141532361,0.33784354,591.99,590.55,0.33866734]
[1741141534460,0.31071773,591.98,590.55,0.33866734]
[1741141535062,0.33786066,591.96,590.55,0.33866734]
[1741141535260,0.31071773,591.95,590.55,0.33866734]
[1741141535461,0.33787778,591.93,590.55,0.33866734]
[1741141535660,0.31071773,591.92,590.55,0.33866734]
[1741141535860,0.33789491,591.9,590.55,0.33866734]
[1741141536164,0.31071773,591.89,590.68,1.25490875]
[1741141536364,0.33791204,591.87,590.68,1.25490875]
[1741141536564,0.31071773,591.86,590.68,1.25490875]
[1741141536861,0.33792917,591.84,590.68,1.25490875]
[1741141537058,0.31071773,591.83,590.68,1.25490875]
[1741141537258,0.33794059,591.82,590.68,1.25490875]
[1741141537562,0.31071773,591.81,590.68,1.25490875]
[1741141537761,0.33795201,591.8,590.68,1.25490875]
[1741141538161,0.33795201,591.8,590.67,1.25490875]
[1741141541063,0.33795201,591.8,590.55,0.33866734]
[1741141542665,0.33795201,591.8,590.74,1.25490875]
[1741141543772,0.31078886,591.79,590.74,1.25490875]
[1741141544372,0.33796914,591.77,590.74,1.25490875]
[1741141544573,0.31078886,591.76,590.74,1.25490875]
[1741141544870,0.64877451,591.75,590.74,1.25490875]
[1741141545067,0.31079395,591.74,590.74,1.25490875]
[1741141545467,0.31079395,591.74,590.71,1.25490875]
[1741141545667,0.3379977,591.72,590.71,1.25490875]
[1741141545870,0.31079395,591.71,590.71,1.25490875]
[1741141546067,0.33800912,591.7,590.71,1.25490875]
[1741141546270,0.31079395,591.69,590.71,1.25490875]
[1741141546467,0.33802055,591.68,590.71,1.25490875]
[1741141548070,0.33802055,591.68,590.55,0.33866734]
[1741141548568,0.33802055,591.68,590.32,1.25490875]
[1741141550769,0.31087343,591.67,590.32,1.25490875]
[1741141551174,0.31087343,591.67,586.54,5.34190867]
[1741141551175,0.31087343,591.67,590.41,1.25490875]
[1741141552873,0.33803769,591.65,590.41,1.25490875]
[1741141553074,0.31087343,591.64,590.41,1.25490875]
[1741141553274,0.33805483,591.62,590.41,1.25490875]
[1741141553577,0.33805483,591.62,590.38,1.25490875]
[1741141553781,0.31090967,591.61,590.38,1.25490875]
[1741141554073,0.33807197,591.59,590.38,1.25490875]
[1741141554279,0.31090967,591.58,590.38,1.25490875]
[1741141556277,0.33807197,591.59,590.4,1.25490875]
[1741141557582,0.31093029,591.58,590.4,1.25490875]
[1741141557777,0.33808912,591.56,590.4,1.25490875]
[1741141559483,0.33808912,591.56,590.13,0.33890837]
[1741141560281,0.3109329,591.55,590.13,0.33890837]
[1741141560484,0.33810055,591.54,590.13,0.33890837]
[1741141560682,0.3109329,591.53,590.13,0.33890837]
[1741141560879,0.33811198,591.52,590.13,0.33890837]
[1741141561079,0.3109329,591.51,590.13,0.33890837]
[1741141561285,0.3109412,591.5,590.33,1.25490875]
[1741141561486,0.3109412,591.51,590.33,1.25490875]
[1741141561687,0.3109412,591.5,590.33,1.25490875]
[1741141561986,0.33813484,591.48,590.33,1.25490875]
[1741141562186,0.3109412,591.47,590.33,1.25490875]
[1741141562781,0.31099261,591.46,590.33,1.25490875]
[1741141562987,0.31099261,591.47,590.33,1.25490875]
[1741141563183,0.31099261,591.46,590.33,1.25490875]
[1741141563489,0.31099261,591.47,590.33,1.25490875]
[1741141563681,0.33813484,591.48,590.18,1.5058905]
[1741141563682,0.31099261,591.46,590.18,1.5058905]
[1741141563887,0.31099261,591.45,590.13,0.33890837]
[1741141564083,0.31099261,591.44,590.13,0.33890837]
[1741141564292,0.31099261,591.43,590.13,0.33890837]
[1741141564589,0.33813484,591.48,590.13,0.33890837]
[1741141564785,1.00789792,591.96,590.13,0.33890837]
[1741141564786,0.33816915,591.42,590.13,0.33890837]
[1741141565390,0.31099124,591.41,590.13,0.33890837]
[1741141565791,0.33818058,591.4,590.13,0.33890837]
[1741141573889,0.31103464,591.39,590.13,0.33890837]
[1741141574087,0.33818058,591.4,590.13,0.33890837]
[1741141574688,0.31109011,591.39,590.13,0.33890837]
[1741141576196,0.33818058,591.4,590.13,0.33890837]
[1741141576398,0.3110925,591.39,590.13,0.33890837]
[1741141577097,0.3110925,591.39,589.99,1.25490875]
[1741141578996,0.33819774,591.37,589.99,1.25490875]
[1741141579199,0.3110925,591.36,589.99,1.25490875]
[1741141579399,0.3382149,591.34,589.99,1.25490875]